[Event "FIDE WCCC U10 2018"]
[Site "Santiago de Compostela"]
[Date "2018.11.09"]
[Round "5"]
[White "Hartofylakas, Spyros"]
[Black "Mogirzan, Matei-Valeriu"]
[Result "1/2-1/2"]
[ECO "B75"]
[WhiteElo "1651"]
[BlackElo "1939"]
[Annotator "NA RC"]
[PlyCount "114"]
[EventDate "2018.11.04"]
[EventType "swiss"]
[EventCountry "ESP"]
[SourceTitle "playchess.com"]
[Source "ChessBase"]
[SourceQuality "1"]
[TimeControl "40/5400+30:1800+30"]

{[%evp 15,114,49,32767,32767,86,86,71,71,108,90,139,57,58,51,54,41,64,-93,32767,32767,32767,32767,32767,32767,32767,32767,32767,-149,32767,32767,32767,-157,-156,32767,-156,32767,-143,-145,32767,32767,-116,32767,32767,-105,-115,32767,-97,32767,-64,-75,32767,-83,-70,32767,32767,-135,-47,-42,32767,32767,32767,-73,-109,32767,32767,32767,32767,32767,32767,32767,32767,32767,32767,32767,32767,32767,32767,32767,32767,-8,0,0,0,0,0,0,-6,0,0,0,0,0,0,0,0,0,0,0,0,0,0]} 1. e4 {[%emt 0:00:00]} c5 2. Nf3 {[%emt 0:00:10]} d6 {[%emt 0:00:28]} 3. d4 {[%emt 0:00:40]} cxd4 {[%emt 0:03:22]} 4. Nxd4 {[%emt 0:00:46]} Nf6 {[%emt 0:00:18]} 5. Nc3 {[%emt 0:00:56]} g6 {[%emt 0:00:29]} 6. Be3 {[%emt 0:00:44]} Bg7 {[%emt 0:00:41]} 7. f3 {[%emt 0:00:42]} Nc6 {[%emt 0:00:26]} 8. Qd2 {[%emt 0:02:26]} O-O {[%emt 0:01:10]} 9. g4 {[%emt 0:01:20]} Nd7 {[%emt 0:04:23]} 10. O-O-O {[%emt 0:08:18] LiveBook: 3 Games B76: Sicilian Dragon: Yugoslav Attack, 9 g4 and 9 0-0-0} Qa5 {[%emt 0:02:01]} 11. Kb1 {[%emt 0:05:26]} Nc5 $146 {[%emt 0:01:36]} ({Predecessor:} 11... Bxd4 12. Bxd4 Nxd4 13. Qxd4 Nf6 14. Qd2 Be6 15. g5 Nh5 16. Nd5 Qxd2 17. Nxe7+ Kg7 18. Rxd2 {0-1 (38) Marchant,M (2265)-Siikaluoma,A (2396) ICCF email 2007}) 12. h4 {[%emt 0:09:14]} Ne6 {[%emt 0:08:46]} (12... Be6 $142) 13. Nxc6 {[%emt 0:11:56]} (13. Nb3 $16 Bxc3 14. bxc3 (14. Nxa5 Bxd2 15. Bxd2 Nxa5 $14)) 13... bxc6 {[%emt 0:00:39]} 14. Nd5 {[%emt 0:00:42]} Qd8 {[%emt 0:04:36]} 15. Nb4 {[%emt 0:02:31]} Rb8 {[%emt 0:02:11]} 16. e5 $2 {[%emt 0:11:04]} ({Much worse is} 16. Bxa7 Rb7 $15) (16. c3 $14 Qd7 17. h5) 16... Bxe5 {[%emt 0:07:26]} 17. Nxc6 {[%emt 0:01:27]} Rxb2+ {[%emt 0:01:13]} 18. Kc1 {[%emt 0:00:28]} Rxa2 {[%emt 0:01:40]} 19. Nxe5 {[%emt 0:00:27]} Ra1+ {[%emt 0:01:35]} 20. Kb2 {[%emt 0:00:29]} Rxd1 {[%emt 0:00:33]} 21. Qxd1 {[%emt 0:03:16]} dxe5 {[%emt 0:00:09]} 22. Qxd8 {[%emt 0:01:13]} Rxd8 {[%emt 0:00:16]} 23. Bxa7 {[%emt 0:00:49]} Bb7 {[%emt 0:00:28]} 24. Be2 {[%emt 0:08:30]} Nf4 {[%emt 0:01:42]} 25. Bd1 {[%emt 0:01:16]} Ra8 {[%emt 0:00:59]} 26. Bc5 {[%emt 0:02:32]} Rb8 {[%emt 0:02:51]} 27. Kc1 {[%emt 0:04:11] [#]} Nd3+ $1 {[%emt 0:01:44]} 28. cxd3 {[%emt 0:00:39]} Rc8 {[%emt 0:00:10]} 29. Kd2 {[%emt 0:00:43]} Rxc5 {[%emt 0:00:05]} 30. Be2 {[%emt 0:02:34]} Ra5 {[%emt 0:02:53]} 31. Rc1 {[%emt 0:01:18]} Ba6 {[%emt 0:02:10]} (31... Ra2+ $17 32. Rc2 Rxc2+ 33. Kxc2 Kg7) 32. Rc7 {[%emt 0:03:15]} Kf8 {[%emt 0:00:35]} 33. Ke3 {[%emt 0:03:57]} f5 {[%emt 0:00:29]} 34. Ra7 {[%emt 0:04:15]} Ra2 {[%emt 0:01:25]} 35. Kf2 {[%emt 0:02:32]} ({Günstiger ist} 35. gxf5 $15 gxf5 36. f4) 35... e4 {[%emt 0:00:57]} (35... Kf7 $17 36. Ra8 {[#]} Bc4 $1 {[%mdl 512]} 37. Rxa2 Bxa2) 36. Ke3 {[%emt 0:05:53]} Ra3 {[%emt 0:00:50]} 37. fxe4 fxe4 {[%emt 0:00:41]} 38. Kf4 {[%emt 0:01:45]} exd3 {[%emt 0:01:43]} 39. Bxd3 {[%emt 0:00:12]} Rxd3 {[%emt 0:00:32]} 40. Rxa6 {[%emt 0:00:00]} Rd5 {[%emt 0:00:00]} 41. Re6 {[%emt 0:07:29]} Kf7 {[%emt 0:04:46]} 42. Re4 {[%emt 0:01:55]} h6 {[%emt 0:02:38]} 43. Rc4 {[%emt 0:06:37]} Kf6 {[%emt 0:02:30]} 44. Rc6+ {[%emt 0:01:43]} Rd6 {[%emt 0:00:19]} 45. Rc5 {[%emt 0:01:19]} Rd4+ {[%emt 0:00:26]} 46. Kf3 {[%emt 0:02:02]} e6 {[%emt 0:02:03]} 47. g5+ {[%emt 0:03:58]} hxg5 {[%emt 0:00:05]} 48. hxg5+ {[%emt 0:00:08]} Ke7 {[%emt 0:00:25]} 49. Rc7+ {[%emt 0:00:57]} Rd7 {[%emt 0:00:16]} 50. Rc8 {[%emt 0:01:36]} Kf7 {[%emt 0:06:29]} 51. Kf4 {[%emt 0:03:01]} Ra7 {[%emt 0:01:38]} 52. Rc5 {[%emt 0:01:54]} Ke7 {[%emt 0:05:19]} 53. Ke5 {[%emt 0:00:09]} Rd7 {[%emt 0:01:03]} 54. Rb5 {[%emt 0:00:44]} Kf7 {[%emt 0:00:38]} 55. Ra5 {[%emt 0:01:00]} Rb7 {[%emt 0:01:01]} 56. Rc5 {[%emt 0:00:16]} Ke7 {[%emt 0:02:19]} 57. Ra5 $11 {[%emt 0:00:07]} Rc7 {[%emt 0:00:25]} 1/2-1/2

[Event "FIDE WCCC U10 2018"]
[Site "Santiago de Compostela"]
[Date "2018.11.09"]
[Round "5"]
[White "Azjargal Erdenebat"]
[Black "Dang, Anh Minh"]
[Result "0-1"]
[ECO "B30"]
[WhiteElo "1633"]
[BlackElo "1817"]
[Annotator "NA RC"]
[PlyCount "154"]
[EventDate "2018.11.04"]
[EventType "swiss"]
[EventCountry "ESP"]
[SourceTitle "playchess.com"]
[Source "ChessBase"]
[SourceQuality "1"]
[TimeControl "40/5400+30:1800+30"]

{[%evp 16,127,34,37,32767,31,20,18,25,0,2,-15,10,0,31,-57,18,6,30,53,32767,32767,32767,32767,32767,32767,0,2,32767,0,32767,32767,32767,32767,-56,32767,32767,-42,-44,32767,-77,-89,-89,-91,-75,32767,0,-22,32767,32767,32767,32767,0,-7,0,0,32767,0,32767,32767,-14,32767,32767,0,32767,-40,32767,32767,32767,-35,-26,-181,-174,-173,-175,-178,-154,32767,32767,32767,32767,32767,-466,-290,-349,32767,32767,-698,-639,-720,-620,-647,32767,-670,-959,-631,-1510,32767,32767,-1281,-2340,32767,-2289,-1563,-9291,-29982,-29984,-29986,-5114,-29974,-12844,-12845,-29959,-12845]} 1. e4 {[%emt 0:00:00]} c5 {[%emt 0:00:00]} 2. Nf3 {[%emt 0:00:00]} Nc6 {[%emt 0:00:00]} 3. Bb5 {[%emt 0:00:50]} e6 {[%emt 0:00:02]} 4. O-O {[%emt 0:00:31]} Nge7 {[%emt 0:00:16]} 5. b3 {[%emt 0:01:36]} a6 {[%emt 0:00:30]} 6. Bxc6 {[%emt 0:00:16]} Nxc6 {[%emt 0:00:43]} 7. Bb2 {[%emt 0:00:44]} d6 {[%emt 0:01:38]} 8. d4 {[%emt 0:02:39]} cxd4 {[%emt 0:15:07]} 9. Nxd4 {[%emt 0:00:34]} Bd7 {[%emt 0:01:03]} 10. c4 {[%emt 0:03:17] B30: Sicilian: 2...Nc6 3 Bb5, lines without ...g6} Be7 {[%emt 0:06:08] LiveBook: 11 Games} (10... Nxd4 11. Qxd4 Qc7 12. Nc3 f6 13. Rad1 Bc6 14. Rfe1 Be7 15. Nd5 Bxd5 16. exd5 e5 17. Qg4 O-O {1-0 (47) Dobrov,V (2522)-Tregubov,P (2589) Moscow 2017}) 11. Nxc6 {[%emt 0:09:38]} Bxc6 {[%emt 0:00:09]} 12. Qe2 $146 {[%emt 0:00:36]} ({Predecessor:} 12. Nc3 b5 13. cxb5 axb5 14. Qd3 Qb6 15. Nd5 exd5 16. exd5 Bb7 17. Bd4 Qd8 18. Bxg7 {1-0 (72) Drozdowski,K (2464)-Calugar,A (2209) Richardson 2014}) 12... O-O {[%emt 0:01:35]} 13. Rd1 {[%emt 0:03:35]} Qa5 {[%emt 0:01:39]} 14. a4 {[%emt 0:19:24]} Qg5 {[%emt 0:02:54]} 15. f3 {[%emt 0:01:57]} (15. Rd3 $14 Qh4 16. Nc3) 15... Qg6 {[%emt 0:06:30]} 16. Ba3 {[%emt 0:01:46]} e5 {[%emt 0:03:49]} 17. Nc3 {[%emt 0:00:40]} f5 {[%emt 0:00:39]} 18. Nd5 {[%emt 0:01:10]} Bxd5 {[%emt 0:00:23]} 19. exd5 {[%emt 0:07:10]} Rae8 {[%emt 0:03:09]} 20. Rac1 {[%emt 0:05:18]} e4 {[%emt 0:01:18]} 21. f4 {[%emt 0:02:34]} Qh6 {[%emt 0:03:10]} 22. g3 {[%emt 0:01:55]} g5 {[%emt 0:01:05]} 23. Qe3 {[%emt 0:01:55]} gxf4 {[%emt 0:12:26]} 24. gxf4 {[%emt 0:00:10]} Kf7 $1 {[%emt 0:00:49]} 25. Kh1 {[%emt 0:01:17]} Rg8 {[%emt 0:01:47]} 26. Rg1 {[%emt 0:02:27]} Qh5 {[%emt 0:02:19]} 27. Rcf1 {[%emt 0:01:40]} Rxg1+ {[%emt 0:03:13]} 28. Rxg1 {[%emt 0:00:21] [#]} Rg8 $1 {[%emt 0:00:17]} 29. Rxg8 {[%emt 0:03:06]} Kxg8 {[%emt 0:00:12]} 30. Bb2 {[%emt 0:02:53]} Qd1+ {[%emt 0:00:52]} (30... Kf7 $17 31. Bd4 Qd1+ 32. Kg2 h6) 31. Qg1+ {[%emt 0:00:16]} Qxg1+ {[%emt 0:00:17]} 32. Kxg1 {[%emt 0:00:05]} Kf7 {[%emt 0:01:55]} 33. Kf2 {[%emt 0:00:36]} Bf6 {[%emt 0:04:09]} 34. Ba3 {[%emt 0:09:14]} Bd4+ {[%emt 0:00:46]} 35. Ke2 {[%emt 0:02:04]} Ke7 {[%emt 0:00:25]} 36. Bb4 {[%emt 0:00:52]} b6 {[%emt 0:08:13]} 37. a5 {[%emt 0:04:09]} Kd7 {[%emt 0:06:29]} 38. axb6 {[%emt 0:05:12]} Bxb6 {[%emt 0:00:02]} 39. Bc3 {[%emt 0:01:19]} a5 {[%emt 0:00:49]} 40. Be1 {[%emt 0:00:00]} Kc7 {[%emt 0:00:00]} 41. Bd2 {[%emt 0:07:36]} Kb7 {[%emt 0:01:38]} 42. Kf1 {[%emt 0:00:41]} Ka6 {[%emt 0:06:04]} 43. Kg2 $2 {[%emt 0:03:35]} (43. Ke2 $11) 43... Bd4 {[%emt 0:02:54]} 44. Kg3 {[%emt 0:02:01] [#]} Kb6 $1 {[%emt 0:06:02]} 45. Bc1 {[%emt 0:04:00] [#]} a4 $1 {[%emt 0:01:31]} 46. b4 $2 {[%emt 0:02:28]} (46. bxa4 Kc5 47. Ba3+ Kxc4 48. Bxd6) 46... Bc3 {[%emt 0:11:22]} 47. Ba3 {[%emt 0:01:08]} Be1+ {[%emt 0:00:12]} 48. Kg2 {[%emt 0:00:57]} Bd2 {[%emt 0:00:25]} 49. Kg3 {[%emt 0:00:35]} Be3 {[%emt 0:00:07]} 50. Bb2 {[%emt 0:04:41]} h5 {[%emt 0:01:23]} 51. h4 {[%emt 0:03:54]} (51. Ba3 $142 Kb7 52. h3) 51... Bd2 {[%emt 0:01:02]} 52. Ba3 {[%emt 0:00:13]} Be1+ {[%emt 0:00:07]} 53. Kh3 {[%emt 0:00:32]} Bf2 {[%emt 0:00:28]} 54. Bb2 {[%emt 0:01:41]} Kc7 {[%emt 0:06:11]} 55. Ba3 {[%emt 0:03:02]} e3 {[%emt 0:00:17]} 56. Kg2 {[%emt 0:00:45]} Bxh4 {[%emt 0:00:08]} 57. Kf3 {[%emt 0:00:07] [#]} Bf2 $1 {[%emt 0:01:13]} 58. b5 {[%emt 0:06:59]} h4 {[%emt 0:04:50]} 59. c5 {[%emt 0:00:12]} h3 {[%emt 0:01:58]} 60. cxd6+ {[%emt 0:00:39]} Kd7 {[%emt 0:00:19]} 61. Bc5 {[%emt 0:02:02]} a3 $19 {[%emt 0:03:02]} (61... h2 $142 62. Kg2 e2 63. Bxf2 a3 64. b6 a2 65. b7 a1=Q 66. Kxh2 Qb2 67. Kg3 Qb3+ 68. Kh4 Qxb7 69. Kg5 Kxd6 70. Kf6 Qb1 71. Kg5 Qb7 72. Be1 Kxd5 73. Kf6 Qb1 74. Bg3 Qg1 75. Bh4 Ke4 76. Ke6 Qg6+ 77. Ke7 Qh7+ 78. Kf6 Qxh4+ 79. Kf7 e1=Q 80. Kg6 Kxf4 81. Kg7 Qg5+ 82. Kh8 Qeh4#) 62. Bxa3 {[%emt 0:00:43] [#]} e2 $1 {[%emt 0:00:32]} 63. Kxf2 {[%emt 0:02:20] [#]} e1=Q+ $1 {[%emt 0:00:11]} 64. Kxe1 {[%emt 0:00:04]} h2 {[%emt 0:00:05]} 65. Bc5 {[%emt 0:01:19]} h1=Q+ {[%emt 0:00:07]} 66. Ke2 {[%emt 0:00:05]} Qxd5 {[%emt 0:00:05]} 67. Be3 {[%emt 0:00:12]} Qxb5+ {[%emt 0:00:06]} 68. Kf3 {[%emt 0:00:03]} Kxd6 {[%emt 0:00:06]} 69. Kg3 {[%emt 0:00:12]} Qe2 {[%emt 0:00:12]} 70. Bf2 {[%emt 0:00:04]} Kd5 {[%emt 0:00:11]} 71. Ba7 {[%emt 0:00:05]} Ke4 {[%emt 0:00:15]} 72. Bb8 {[%emt 0:00:06]} Qg4+ {[%emt 0:00:32]} 73. Kf2 {[%emt 0:00:05]} Qh4+ {[%emt 0:00:10]} 74. Kg2 {[%emt 0:00:05]} Ke3 {[%emt 0:00:08]} 75. Ba7+ {[%emt 0:00:06]} Ke2 {[%emt 0:00:05]} 76. Bg1 {[%emt 0:00:05]} Qg4+ {[%emt 0:00:07]} 77. Kh1 {[%emt 0:00:09]} Kf1 {[%emt 0:00:04]} 0-1

[Event "FIDE WCCC U10 2018"]
[Site "Santiago de Compostela"]
[Date "2018.11.09"]
[Round "5"]
[White "Sloan, Jed"]
[Black "Ansat, Aldiyar"]
[Result "1-0"]
[ECO "C00"]
[WhiteElo "1556"]
[BlackElo "1899"]
[Annotator "NA RC"]
[PlyCount "137"]
[EventDate "2018.11.04"]
[EventType "swiss"]
[EventCountry "ESP"]
[SourceTitle "playchess.com"]
[Source "ChessBase"]
[SourceQuality "1"]
[TimeControl "40/5400+30:1800+30"]

{[%evp 14,137,18,-2,6,10,25,6,16,-21,3,0,37,35,46,60,47,57,60,38,91,26,41,36,54,48,71,79,119,99,162,32767,32767,32767,32767,32767,128,32767,122,32767,32767,126,189,190,220,201,195,178,176,32767,243,192,183,32767,32767,218,306,32767,316,318,32767,32767,519,32767,337,375,358,32767,32767,32767,32767,32767,418,359,386,406,543,503,538,351,326,358,387,32767,32767,32767,395,332,32767,294,216,312,259,364,337,399,497,405,392,469,720,693,693,578,595,640,624,569,32767,616,716,32767,32767,32767,729,809,29986,32767,32767,32767,32767,32767,629,32767,29992,29993]} 1. e4 {[%emt 0:00:00]} e6 {[%emt 0:00:00]} 2. d3 {[%emt 0:00:00]} d5 {[%emt 0:00:00]} 3. Nd2 {[%emt 0:00:09]} Nf6 {[%emt 0:01:00]} 4. Ngf3 Nc6 {[%emt 0:01:12]} 5. g3 {[%emt 0:01:44]} Be7 {[%emt 0:04:15] C00: French: Unusual White 2nd moves} 6. Bg2 {[%emt 0:01:34]} O-O {[%emt 0:00:43]} 7. O-O {[%emt 0:01:16]} b6 {[%emt 0:05:18]} (7... dxe4 8. dxe4 e5 9. c3 a5 10. Qc2 Be6 11. b3 Nd7 12. Rd1 Qe8 13. Nf1 f6 14. Ne3 Qf7 15. Nd5 Bd6 16. Nd2 Ne7 17. Ne3 {½-½ (108) Onischuk,V (2637)-Kravtsiv,M (2672) Riadh 2017}) 8. e5 {[%emt 0:00:53]} Nd7 {[%emt 0:00:10]} 9. Re1 {[%emt 0:01:42]} a5 {[%emt 0:05:04]} 10. Nf1 $146 {[%emt 0:05:34]} ({Predecessor:} 10. d4 Na7 11. c4 dxc4 12. Nxc4 Ba6 13. Ne3 c6 14. h4 Rc8 {1-0 (40) Harvey,M (2320)-De Blecourt,S (2157) Helsingor 2015}) 10... a4 {[%emt 0:00:00]} 11. Bf4 {[%emt 0:03:48]} a3 {[%emt 0:00:12]} 12. b3 $1 {[%emt 0:00:38]} Bb4 {[%emt 0:01:31]} 13. Bd2 {[%emt 0:00:58]} Ba6 {[%emt 0:12:03]} 14. c3 {[%emt 0:01:47]} Be7 {[%emt 0:00:15]} 15. d4 {[%emt 0:00:36]} Bd3 {[%emt 0:04:06]} 16. Bf4 {[%emt 0:00:56]} Be4 {[%emt 0:00:42] [#]} 17. N1d2 {[%emt 0:03:41]} ({Better is} 17. Rxe4 $1 $16 {[%mdl 512]} dxe4 18. N3d2) 17... Bf5 {[%emt 0:01:37]} 18. h4 {[%emt 0:09:42]} Bg4 {[%emt 0:09:43]} 19. Nf1 {[%emt 0:02:27]} Na5 {[%emt 0:01:34]} 20. Ne3 {[%emt 0:00:58]} Bxf3 {[%emt 0:00:06]} 21. Bxf3 {[%emt 0:00:35]} Rc8 {[%emt 0:00:33]} 22. c4 {[%emt 0:03:09]} c6 {[%emt 0:04:25]} 23. Rc1 {[%emt 0:01:56]} Nb8 {[%emt 0:02:10]} 24. Qd3 {[%emt 0:04:06]} Na6 {[%emt 0:04:34]} 25. Nc2 {[%emt 0:01:19]} Nb4 {[%emt 0:07:00]} 26. Nxb4 {[%emt 0:00:19]} Bxb4 {[%emt 0:00:01]} 27. Red1 {[%emt 0:00:39]} dxc4 {[%emt 0:10:17]} (27... Qd7 $16 28. Be3 Rfd8) 28. bxc4 {[%emt 0:01:31]} Qe7 {[%emt 0:02:48]} 29. Bg5 {[%emt 0:04:40]} Qc7 {[%emt 0:02:34]} 30. Qe4 {[%emt 0:04:13]} Be7 {[%emt 0:02:25]} 31. Qg4 {[%emt 0:10:01]} Rfe8 {[%emt 0:02:50]} (31... Bxg5 $16 {kämpft weiter.} 32. Qxg5 Qb8) 32. Bh6 {[%emt 0:04:44]} Bf8 {[%emt 0:00:42]} 33. h5 {[%emt 0:02:33]} Kh8 {[%emt 0:00:20]} 34. Bf4 {[%emt 0:01:17]} Qe7 {[%emt 0:01:18]} 35. h6 {[%emt 0:02:35]} g6 {[%emt 0:00:06]} 36. d5 {[%emt 0:07:02]} b5 {[%emt 0:06:47]} 37. Bg5 {[%emt 0:02:25]} Qb7 {[%emt 0:02:22]} 38. d6 {[%emt 0:01:52]} Qd7 {[%emt 0:00:26]} 39. c5 {[%emt 0:01:14]} Kg8 {[%emt 0:02:31]} 40. Qb4 {[%emt 0:00:00]} Nc4 {[%emt 0:00:00]} 41. Rxc4 {[%emt 0:04:54]} bxc4 {[%emt 0:01:51]} 42. Qxc4 {[%emt 0:00:07]} Rb8 {[%emt 0:08:06]} 43. Qe4 {[%emt 0:03:38]} Rec8 {[%emt 0:00:21]} 44. Qe3 {[%emt 0:05:21]} Rb5 {[%emt 0:14:22]} 45. Qxa3 {[%emt 0:00:55]} Rcb8 {[%emt 0:00:05]} 46. Be2 {[%emt 0:02:43]} Rb2 {[%emt 0:00:55]} 47. Bf1 {[%emt 0:00:33]} Rc2 {[%emt 0:03:27]} 48. Bd3 {[%emt 0:01:29]} Rcb2 {[%emt 0:00:15]} 49. Qa6 {[%emt 0:01:06]} R2b4 {[%emt 0:02:40]} 50. Bc4 {[%emt 0:02:58]} R8b7 {[%emt 0:01:48]} 51. Bf1 {[%emt 0:02:34]} Ra7 {[%emt 0:03:52]} 52. Qe2 {[%emt 0:01:03]} Rb5 {[%emt 0:03:50]} 53. Qe3 {[%emt 0:00:33]} Rba5 {[%emt 0:00:39]} 54. Rb1 {[%emt 0:00:53]} Ra8 {[%emt 0:00:31]} 55. Rb2 {[%emt 0:00:37]} Ra3 {[%emt 0:00:17]} 56. Qd2 {[%emt 0:00:49]} Rf3 {[%emt 0:00:49]} 57. Bg2 {[%emt 0:00:28]} Rfa3 {[%emt 0:00:21]} 58. Qc2 {[%emt 0:00:40]} R3a6 {[%emt 0:00:35]} 59. Qe4 {[%emt 0:00:41]} Rc8 {[%emt 0:00:32]} 60. Rb6 {[%emt 0:01:13]} Ra5 {[%emt 0:00:31]} 61. Rxc6 {[%emt 0:00:40]} Rxc5 {[%emt 0:00:11]} 62. Rxc5 Rxc5 63. Qb7 {[%emt 0:00:34]} Qa4 {[%emt 0:01:21]} 64. Bf3 {[%emt 0:01:34]} Rxe5 {[%emt 0:00:29]} 65. d7 {[%emt 0:00:34]} Re1+ {[%emt 0:00:06]} 66. Kg2 {[%emt 0:00:10]} Qc4 {[%emt 0:00:23]} 67. d8=Q {[%emt 0:01:04]} Qf1+ {[%emt 0:00:08]} 68. Kh2 {[%emt 0:00:14]} Qxf2+ {[%emt 0:00:52]} 69. Bg2 {[%emt 0:00:12]} 1-0

[Event "FIDE WCCC U10 2018"]
[Site "Santiago de Compostela"]
[Date "2018.11.09"]
[Round "5"]
[White "Clarkson, George"]
[Black "Pingin, Artem"]
[Result "0-1"]
[ECO "B43"]
[WhiteElo "1552"]
[BlackElo "1981"]
[Annotator "NA RC"]
[PlyCount "76"]
[EventDate "2018.11.04"]
[EventType "swiss"]
[EventCountry "ESP"]
[SourceTitle "playchess.com"]
[Source "ChessBase"]
[SourceQuality "1"]
[TimeControl "40/5400+30:1800+30"]

{[%evp 14,76,12,-27,0,0,14,-15,70,71,32767,32767,32767,32767,32767,32767,32767,32767,32767,-275,-298,-285,-308,32767,32767,-426,-443,-618,-428,-406,-412,-658,32767,32767,-579,-893,-767,-708,32767,32767,32767,32767,-1197,-1139,32767,-926,-719,-1008,32767,32767,-1064,-1062,-1130,32767,32767,32767,32767,32767,32767,32767,32767,32767,-1791,-29988,-29989]} 1. e4 c5 2. Nf3 e6 3. d4 {[%emt 0:00:32]} cxd4 {[%emt 0:00:40]} 4. Nxd4 {[%emt 0:00:00]} a6 {[%emt 0:01:43]} 5. Nc3 {[%emt 0:01:36]} Qc7 {[%emt 0:02:34]} 6. Be3 {[%emt 0:01:53]} Nf6 {[%emt 0:01:30]} 7. a3 {[%emt 0:03:34]} b5 {[%emt 0:02:13] LiveBook: 24 Games} 8. g4 {[%emt 0:01:09] B43: Sicilian: Kan Variation: 5 Nc3} (8. Bd3 Bb7 9. Qf3 d6 10. Qg3 Nbd7 11. O-O h5 12. h3 h4 13. Qf3 Be7 14. Nb3 d5 15. Bf4 e5 {0-1 (31) Escobar Medina,A (2343)-Iturrizaga Bonelli,E (2663) Medellin 2017}) 8... b4 {[%emt 0:06:53]} 9. axb4 {[%emt 0:20:22]} Bxb4 {[%emt 0:00:13]} 10. Ndb5 {[%emt 0:25:10]} Qc6 $146 {[%emt 0:10:14]} ({Besser ist Predecessor:} 10... axb5 $11 11. Rxa8 Bb7 12. Rxb8+ (12. Ra7 Nc6 $11 13. Rxb7 Qxb7 14. f3 Ne5 15. Kf2 O-O {0-1 (26) Sharshov,W (1825)-De Groote,E (2206) Enschede 2009}) 12... Qxb8) 11. Qd4 {[%emt 0:01:50]} axb5 {[%emt 0:08:44]} 12. Rxa8 {[%emt 0:00:48]} Qxa8 {[%emt 0:00:23]} 13. Qxb4 {[%emt 0:00:06]} Nc6 {[%emt 0:06:22]} 14. Qd6 {[%emt 0:06:07]} Qa1+ {[%emt 0:04:58]} 15. Kd2 {[%emt 0:00:59]} b4 {[%emt 0:01:46]} 16. Bg2 {[%emt 0:12:54]} bxc3+ {[%emt 0:00:28]} 17. bxc3 {[%emt 0:00:09]} Qa4 {[%emt 0:01:26]} 18. f3 {[%emt 0:02:24]} Ng8 {[%emt 0:06:58]} 19. e5 {[%emt 0:04:07]} (19. Rb1 {was worth a try.}) 19... Nge7 {[%emt 0:00:36]} 20. Bg5 {[%emt 0:00:22]} h6 {[%emt 0:01:27]} 21. Bxe7 {[%emt 0:00:04]} Nxe7 {[%emt 0:00:05]} 22. Rb1 {[%emt 0:00:14]} (22. Qb4 $142 Qc6 23. Ra1) 22... Qf4+ {[%emt 0:03:39]} 23. Ke2 {[%emt 0:00:47]} f6 {[%emt 0:00:10]} 24. Rb5 {[%emt 0:03:01]} Kf7 {[%emt 0:00:56]} 25. Kf2 {[%emt 0:00:22]} Nc6 {[%emt 0:01:00]} 26. Bf1 {[%emt 0:02:39]} Nxe5 {[%emt 0:00:25]} 27. Qd1 {[%emt 0:00:29]} Nxg4+ {[%emt 0:00:20]} 28. Ke1 {[%emt 0:00:12]} Qe3+ {[%emt 0:00:31]} 29. Qe2 {[%emt 0:00:09]} Qc1+ {[%emt 0:00:08]} 30. Qd1 {[%emt 0:00:04]} Qxd1+ {[%emt 0:00:02]} 31. Kxd1 {[%emt 0:00:07]} Ne3+ 32. Ke1 {[%emt 0:00:09]} Nxf1 {[%emt 0:00:08]} 33. Ra5 {[%emt 0:00:32]} Ne3 34. Ra8 {[%emt 0:00:06]} Re8 {[%emt 0:00:19]} 35. Kd2 {[%emt 0:00:07]} Nc4+ {[%emt 0:00:05]} 36. Kd3 {[%emt 0:00:06]} d5 {[%emt 0:00:07]} 37. f4 {[%emt 0:00:11]} e5 {[%emt 0:00:27]} 38. fxe5 {[%emt 0:00:06]} Bf5+ {[%emt 0:00:03]} 0-1

[Event "FIDE WCCC U10 2018"]
[Site "Santiago de Compostela"]
[Date "2018.11.10"]
[Round "6"]
[White "Kadam Om Manish"]
[Black "Bialiauski, Artsiom"]
[Result "0-1"]
[ECO "E46"]
[WhiteElo "2025"]
[BlackElo "1791"]
[Annotator "NA"]
[PlyCount "41"]
[EventDate "2018.11.04"]
[EventType "swiss"]
[EventCountry "ESP"]
[SourceTitle "playchess.com"]
[Source "ChessBase"]
[SourceQuality "1"]
[TimeControl "40/5400+30:1800+30"]

1. d4 {[%emt 0:00:00]} Nf6 {[%emt 0:00:46]} 2. c4 {[%emt 0:00:00]} e6 {[%emt 0:02:41]} 3. Nc3 {[%emt 0:01:18]} Bb4 {[%emt 0:03:57]} 4. e3 {[%emt 0:00:08]} O-O {[%emt 0:02:34]} 5. Nge2 {[%emt 0:00:05]} c5 {[%emt 0:01:33]} 6. a3 {[%emt 0:06:04]} Bxc3+ {[%emt 0:06:27]} 7. bxc3 {[%emt 0:02:02]} b6 $11 {[%emt 0:00:34] LiveBook: 12 Games} 8. Ng3 {[%emt 0:02:53]} Nc6 {[%emt 0:01:49]} 9. Bd3 {[%emt 0:00:47]} Ba6 {[%emt 0:00:33]} 10. O-O {[%emt 0:10:01]} Rc8 {[%emt 0:03:17]} 11. Qa4 {[%emt 0:09:05]} Na5 {[%emt 0:05:01]} 12. Qd1 {[%emt 0:11:06]} cxd4 {[%emt 0:17:21]} 13. cxd4 {[%emt 0:00:12]} Bxc4 {[%emt 0:06:01]} 14. e4 {[%emt 0:06:31]} d5 {[%emt 0:06:59]} 15. e5 {[%emt 0:00:48]} Ne4 {[%emt 0:05:07]} 16. Ne2 {[%emt 0:16:02]} f5 {[%emt 0:07:25]} 17. Nf4 {[%emt 0:02:19]} Qe8 {[%emt 0:02:42]} 18. Bxc4 {[%emt 0:02:03]} Rxc4 {[%emt 0:02:50]} 19. Be3 {[%emt 0:02:20]} g5 {[%emt 0:03:09]} 20. Nh5 {[%emt 0:01:38]} Nc3 {[%emt 0:01:01]} 21. Qf3 {[%emt 0:01:09]} 0-1